bitfinex-derivatives/quotes_BNBF0:USTF0_20250211
["timestamp","ask_amount","ask_price","bid_price","bid_amount"]
[1739293279862,0.31587093,633.17,631.41,0.60738195]
[1739293280056,0.31587093,633.17,631.42,0.60737694]
[1739293280262,0.31587093,633.17,631.43,0.29063056]
[1739293280463,0.31587093,633.17,631.44,0.31673634]
[1739293280660,0.31587093,633.17,631.45,0.29063056]
[1739293280963,0.31587093,633.17,631.46,0.31672631]
[1739293281165,0.31587093,633.17,631.47,0.29063056]
[1739293281359,0.31587093,633.17,631.48,0.31671628]
[1739293281564,0.31587093,633.17,631.49,0.29063056]
[1739293281765,0.31587093,633.17,631.5,0.29066657]
[1739293281967,0.31587093,633.17,631.49,0.29066657]
[1739293282168,0.31587093,633.17,631.5,0.29066657]
[1739293282462,0.31587093,633.17,631.51,0.29066657]
[1739293282763,0.31587093,633.17,631.52,0.29066657]
[1739293283069,0.31587093,633.17,631.53,0.29066657]
[1739293283267,0.31587093,633.17,631.54,0.29066657]
[1739293283462,0.31587093,633.17,631.55,0.29066657]
[1739293283665,0.31587093,633.17,631.49,0.29066657]
[1739293283866,0.31587093,633.17,631.5,0.29066657]
[1739293284117,0.31587093,633.17,631.48,0.31671628]
[1739293284266,0.31587093,633.17,631.49,0.29068906]
[1739293284460,0.31587093,633.17,631.48,0.31671628]
[1739293285689,0.31587093,633.17,631.49,0.29072819]
[1739293288968,0.31587093,633.17,631.48,0.31671628]
[1739293289168,0.31587093,633.17,631.49,0.29074221]
[1739293290163,3.66421697,633.16,631.49,0.29074221]
[1739293290364,0.31587093,633.17,631.49,0.29074221]
[1739293290365,3.66421697,633.15,631.49,0.29074221]
[1739293290567,0.31589089,633.13,631.49,0.29074221]
[1739293291265,0.31589089,633.13,631.48,0.31671628]
[1739293291867,0.31589089,633.13,630.86,1.65180726]
[1739293292069,0.31589089,633.13,630.88,0.31701749]
[1739293292265,0.31589089,633.13,630.89,0.29084066]
[1739293292868,0.31589089,633.13,630.9,0.2908571]
[1739293293070,0.31589089,633.13,630.89,0.2908571]
[1739293293968,0.31589089,633.13,630.9,0.31700744]
[1739293294169,0.31589089,633.13,630.91,0.2908571]
[1739293294470,0.31589089,633.13,630.92,0.3169974]
[1739293294666,0.31589089,633.13,630.93,0.2908571]
[1739293294867,0.31589089,633.13,630.94,0.31698735]
[1739293295065,0.31589089,633.13,630.95,0.2908571]
[1739293295370,0.31589089,633.13,630.96,0.3169773]
[1739293295671,0.31589089,633.13,630.97,0.2908571]
[1739293295897,0.31589089,633.13,630.98,0.31696725]
[1739293296171,0.31589089,633.13,630.99,0.2908571]
[1739293296371,0.31589089,633.13,631.0,0.31695721]
[1739293296567,0.31589089,633.13,631.01,0.2908571]
[1739293296768,0.31589089,633.13,631.02,0.31694716]
[1739293297072,0.31589089,633.13,631.03,0.2908571]
[1739293297772,0.31589089,633.13,631.05,0.31693209]
[1739293297990,0.31589089,633.13,631.06,0.2908571]
[1739293298173,0.31589089,633.13,631.05,0.31693209]
[1739293298373,0.31589089,633.13,631.06,0.29081354]
[1739293299174,0.31589089,633.13,631.07,0.31692205]
[1739293299474,0.31589089,633.13,631.08,0.29081354]
[1739293299675,0.31589089,633.13,631.09,0.316912]
[1739293299875,0.31589089,633.13,631.1,0.29081354]
[1739293300111,0.31589089,633.13,631.09,0.316912]
[1739293300276,0.31589089,633.13,631.1,0.29089055]
[1739293301979,0.31589089,633.13,631.09,0.316912]
[1739293302476,0.31589089,633.13,630.41,1.65245435]
[1739293302676,0.31589089,633.13,630.43,0.31724378]
[1739293302873,0.31589089,633.13,630.44,0.29101242]
[1739293304778,0.31589089,633.13,630.46,0.31722869]
[1739293305078,0.31589089,633.13,630.47,0.29101242]
[1739293306179,0.31589089,633.13,630.48,0.29101242]
[1739293306378,0.31589089,633.13,630.49,0.29101242]
[1739293306578,0.31589089,633.13,630.47,0.29101242]
[1739293306779,0.31589089,633.13,630.48,0.29101242]
[1739293306979,0.31589089,633.13,630.47,0.29101242]
[1739293307181,0.31589089,633.13,630.49,0.29101242]
[1739293307376,0.31589089,633.13,630.5,0.29101242]
[1739293307571,0.31589089,633.13,630.51,0.29101242]
[1739293307776,0.31589089,633.13,630.52,0.29101242]
[1739293307974,0.31589089,633.13,630.47,0.29101242]
[1739293308180,0.31589089,633.13,630.48,0.29101242]
[1739293308374,0.31589089,633.13,630.47,0.29101242]
[1739293308581,0.31589089,633.13,630.48,0.29101242]
[1739293308781,0.31589089,633.13,630.49,0.29101242]
[1739293308978,0.31589089,633.13,630.47,0.29101242]
[1739293309181,0.31589089,633.13,630.48,0.29101242]
[1739293309382,0.31589089,633.13,630.49,0.29101242]
[1739293309582,0.31589089,633.13,630.5,0.29101242]
[1739293309808,0.31589089,633.13,630.51,0.29101242]
[1739293309984,0.31589089,633.13,630.47,0.29101242]
[1739293310177,0.31589089,633.13,630.48,0.29101242]
[1739293310378,0.31589089,633.13,630.47,0.29101242]
[1739293310586,0.31589089,633.13,630.48,0.29101242]
[1739293310781,0.31589089,633.13,630.5,0.31720856]
[1739293311085,0.31589089,633.13,630.51,0.29098669]
[1739293311899,0.31589089,633.13,630.53,0.31719347]
[1739293312183,0.31589089,633.13,630.54,0.29098669]
[1739293313184,0.31589089,633.13,630.56,0.31717838]
[1739293313379,0.31589089,633.13,630.57,0.29098669]
[1739293314383,0.31589089,633.13,630.59,0.31716329]
[1739293314683,0.31589089,633.13,630.6,0.29098669]
[1739293314882,0.31589089,633.13,630.62,0.3171482]
[1739293315105,0.31589089,633.13,630.63,0.29098669]
[1739293315283,0.31589089,633.13,630.64,0.31713814]
[1739293315483,0.31589089,633.13,630.65,0.29098669]
[1739293315785,0.31589089,633.13,630.66,0.31712808]
[1739293315983,0.31589089,633.13,630.67,0.29098669]
[1739293316186,0.31589089,633.13,630.68,0.60810472]
[1739293316482,0.31589089,633.13,630.35,1.65318702]
[1739293316483,0.31589089,633.13,630.69,1.27793782]
[1739293316684,0.31589089,633.13,630.7,1.27793279]
[1739293316888,0.31589089,633.13,630.71,0.96082482]
[1739293317083,0.31589089,633.13,630.72,0.96082482]
[1739293317384,0.31589089,633.13,630.73,0.2909823]
[1739293317584,0.31589089,633.13,630.71,0.2909823]
[1739293317780,1.4083708,632.98,630.72,0.2909823]
[1739293317979,1.4083708,632.98,630.71,0.2909823]
[1739293318680,0.31602066,632.87,630.72,0.31709791]
[1739293318879,0.31602066,632.87,630.73,0.2909823]
[1739293319185,0.31602066,632.87,630.75,0.31708283]
[1739293319383,0.31602066,632.87,630.76,0.2909823]
[1739293319684,0.31602066,632.87,630.78,0.31706775]
[1739293319886,0.31602066,632.87,630.79,0.2909823]
[1739293320081,0.31602066,632.87,630.8,0.2909823]
[1739293320408,0.31602066,632.87,630.81,0.60803497]
[1739293320586,0.31602066,632.87,630.82,0.2909823]
[1739293320782,0.31602066,632.87,630.84,0.3170376]
[1739293320986,0.31602066,632.87,630.85,0.2909823]
[1739293321185,0.31602066,632.87,630.87,0.31702252]
[1739293321481,0.31602066,632.87,630.88,0.29083556]
[1739293321682,0.31602066,632.87,630.89,0.29083556]
[1739293321887,0.31602066,632.87,630.9,0.29083556]
[1739293322089,0.31602066,632.87,630.91,0.29083556]
[1739293322283,0.31602066,632.87,630.92,0.29083556]
[1739293322484,0.31602066,632.87,630.94,0.31698735]
[1739293322684,0.31602066,632.87,630.95,0.29083556]
[1739293322887,0.31602066,632.87,630.96,0.29083556]
[1739293323090,0.31602066,632.87,630.97,0.29083556]
[1739293323284,0.31602066,632.87,630.98,0.29083556]
[1739293323490,0.31602066,632.87,631.0,0.31695721]
[1739293323689,0.31602066,632.87,631.01,0.29083556]
[1739293323886,0.31602066,632.87,631.03,0.31694214]
[1739293324090,0.31602066,632.87,631.04,0.29083556]
[1739293324288,0.31602066,632.87,631.05,0.29083556]
[1739293324484,0.31602066,632.87,631.06,0.29083556]
[1739293324684,0.31602066,632.87,631.07,0.60775761]
[1739293324885,0.31602066,632.87,631.08,0.60775259]
[1739293325090,0.31602066,632.87,631.04,0.66954276]
[1739293325091,0.31602066,632.87,631.09,0.60774756]
[1739293325389,0.31602066,632.87,631.1,0.60774254]
[1739293325589,0.31602066,632.87,631.11,0.60773752]
[1739293325784,0.31602066,632.87,623.11,5.64915458]
[1739293325785,0.31602066,632.87,631.12,0.6077325]
[1739293325988,0.31602066,632.87,631.13,0.29083556]
[1739293326185,0.31602066,632.87,631.14,0.60772246]
[1739293326384,0.31602066,632.87,631.15,0.60771744]
[1739293326586,0.31602066,632.87,631.16,0.60771242]
[1739293326804,0.31602066,632.87,631.17,0.6077074]
[1739293326986,0.31602066,632.87,631.18,0.60770238]
[1739293327192,0.31602066,632.87,631.19,0.29083556]
[1739293329890,0.31602066,632.87,631.2,0.29083556]
[1739293330090,0.31602066,632.87,631.21,0.29083556]
[1739293330295,0.31602066,632.87,631.21,0.96030804]
[1739293330592,0.31602066,632.87,631.23,0.31684172]
[1739293330792,0.31602066,632.87,631.24,0.29083556]
[1739293330992,0.31602066,632.87,631.25,0.29083556]
[1739293331186,0.31602066,632.87,631.26,0.29083556]
[1739293331387,0.31602066,632.87,631.27,0.29083556]
[1739293331691,0.31602066,632.87,631.28,0.60765218]
[1739293331893,0.31602066,632.87,631.29,0.60764716]
[1739293332085,0.31602066,632.87,631.3,0.60764214]
[1739293332291,0.31602066,632.87,631.31,1.27710961]
[1739293332490,0.31602066,632.87,631.32,0.29083556]
[1739293332687,0.31602066,632.87,631.33,0.31679153]
[1739293332891,0.31602066,632.87,631.34,0.29083556]
[1739293335188,0.31602066,632.87,631.35,0.31678149]
[1739293335445,0.31602066,632.87,631.36,0.29083556]
[1739293335590,0.31602066,632.87,631.35,0.31678149]
[1739293337896,0.31602066,632.87,631.36,0.29082347]
[1739293338097,0.31602066,632.87,631.35,0.31678149]
[1739293338296,0.31602066,632.87,631.36,0.29078388]
[1739293338497,0.31602066,632.87,631.35,0.31678149]
[1739293338707,0.31602066,632.87,631.36,0.29078142]
[1739293339200,0.31602066,632.87,631.35,0.31678149]
[1739293339597,0.31602066,632.87,631.36,0.29078775]
[1739293340301,0.31602066,632.87,631.35,0.31678149]
[1739293343700,0.31602066,632.87,630.66,1.6524805]
[1739293343895,0.31602066,632.87,630.68,0.31711803]
[1739293344098,0.31602066,632.87,630.69,0.29089711]
[1739293344296,0.31602066,632.87,630.71,0.31710294]
[1739293344497,0.31602066,632.87,630.72,0.29089711]
[1739293344699,0.31602066,632.87,630.74,0.31708786]
[1739293344898,0.31602066,632.87,630.75,0.29089711]
[1739293345142,0.31602066,632.87,630.77,0.31707278]
[1739293345294,0.31602066,632.87,630.78,0.29089711]
[1739293345601,0.31602066,632.87,630.8,0.3170577]
[1739293345801,0.31602066,632.87,630.81,0.29089711]
[1739293347701,0.31602066,632.87,630.83,0.31704262]
[1739293347905,3.66421697,632.86,630.84,0.29089711]
[1739293348107,3.66421697,632.86,630.83,0.31704262]
[1739293348108,3.66421697,632.85,630.85,0.29089711]
[1739293348296,0.31604064,632.83,630.87,0.31702252]
[1739293348498,3.66421697,632.82,630.88,0.29082852]
[1739293348697,0.31605562,632.8,630.9,0.31700744]
[1739293348905,3.66421697,632.79,630.91,0.29082852]
[1739293349097,3.66421697,632.79,630.92,0.29082852]
[1739293349296,0.31607061,632.77,630.94,0.31698735]
[1739293349501,3.66421697,632.76,630.95,0.29082852]
[1739293349702,0.31608559,632.74,630.97,0.31697228]
[1739293349903,3.98030256,632.74,630.98,0.29082852]
[1739293350106,0.31608559,632.74,631.0,0.31695721]
[1739293350303,3.66421697,632.73,631.01,0.29082852]
[1739293350605,0.31610058,632.71,631.02,0.31694716]
[1739293351004,3.66421697,632.7,631.03,0.29082852]
[1739293351204,0.31610058,632.71,631.04,0.29086254]
[1739293351404,0.31610058,632.71,631.05,0.31693209]
[1739293351654,0.31610058,632.71,631.06,0.29086254]
[1739293351905,0.31610058,632.71,631.07,0.31692205]
[1739293352205,0.31610058,632.71,631.08,0.29085992]
[1739293352802,0.31610058,632.71,631.09,0.316912]
[1739293352998,0.31610058,632.71,631.1,0.29085992]
[1739293354506,0.31610058,632.71,631.11,0.31690196]
[1739293354830,0.31610058,632.71,631.12,0.29085992]
[1739293355906,5.38481671,632.7,631.12,0.29085992]
[1739293356106,0.31611557,632.68,631.12,0.29085992]
[1739293356301,3.66421697,632.67,631.13,0.29089039]
[1739293356506,0.31613056,632.65,631.12,0.29089039]
[1739293356800,3.66421697,632.64,631.13,0.29089039]
[1739293357006,0.31614555,632.62,631.12,0.29089039]
[1739293357308,3.66421697,632.61,631.13,0.29089039]
[1739293357605,0.31616054,632.59,631.14,0.29089039]
[1739293357804,0.31616054,632.59,631.15,0.29089039]
[1739293357805,1.4083708,632.5,631.15,0.29089039]
[1739293358023,0.31621053,632.49,631.16,0.29089039]
[1739293358207,0.31621053,632.49,631.11,0.31690196]
[1739293358208,0.31621053,632.49,631.17,0.29089039]
[1739293358509,0.31621053,632.49,631.18,0.29089039]
[1739293358709,0.31621053,632.49,631.12,0.29089039]
[1739293358910,0.31621053,632.49,631.13,0.29089039]
[1739293359114,0.31621053,632.49,631.12,0.29089039]
[1739293359305,0.31621053,632.49,631.14,0.29089039]
[1739293359510,0.31621053,632.49,631.15,0.29089039]
[1739293359706,0.31621053,632.49,631.12,0.29089039]
[1739293359908,0.31621053,632.49,631.13,0.29089039]
[1739293360156,0.31621053,632.49,631.12,0.29089039]
[1739293360309,0.31621053,632.49,631.13,0.29089039]
[1739293360518,0.31621053,632.49,631.11,0.31690196]
[1739293366715,0.31621053,632.49,631.12,0.29091342]
[1739293369817,0.31621053,632.49,631.13,0.29085458]
[1739293370117,0.31621053,632.49,631.14,0.60774148]
[1739293370315,0.31621053,632.49,631.15,0.60773646]
[1739293370516,0.31621053,632.49,631.16,0.60773144]
[1739293370733,0.31621053,632.49,631.17,0.60772642]
[1739293370918,0.31621053,632.49,631.18,0.29085458]
[1739293373320,0.31621053,632.49,631.19,0.2908643]
[1739293373519,0.31621053,632.49,631.18,0.2908643]
[1739293373820,0.31621053,632.49,631.17,0.31687184]
[1739293376525,0.31621053,632.49,631.18,0.29086845]
[1739293377722,0.31621053,632.49,631.19,0.29085745]
[1739293377926,0.31621053,632.49,631.18,0.29085745]
[1739293378126,0.31621053,632.49,631.19,0.29085745]
[1739293378424,0.31621053,632.49,631.2,0.29085745]
[1739293378625,0.31621053,632.49,631.18,0.29085745]
[1739293378825,0.31621053,632.49,631.19,0.3168618]
[1739293379026,0.31621053,632.49,631.2,0.29085745]
[1739293380722,0.31621053,632.49,631.21,0.29082656]
[1739293380923,0.31621053,632.49,631.2,0.29082656]
[1739293381127,0.31621053,632.49,630.84,0.66951882]
[1739293381128,0.31621053,632.49,631.21,0.60767832]
[1739293381323,0.31621053,632.49,631.22,0.6076733]
[1739293381629,0.31621053,632.49,631.23,0.60766828]
[1739293381831,0.31621053,632.49,631.23,0.31684172]
[1739293382129,0.31621053,632.49,631.24,0.29083725]
[1739293383726,0.31621053,632.49,631.25,0.29077566]
[1739293383927,0.31621053,632.49,631.26,0.29077566]
[1739293384126,0.31621053,632.49,631.24,0.29077566]
[1739293384328,0.31621053,632.49,631.27,0.29077566]
[1739293384529,0.31621053,632.49,631.28,0.29077566]
[1739293384930,0.31621053,632.49,631.29,0.29077566]
[1739293385230,0.31621053,632.49,631.3,0.29077566]
[1739293385431,0.31621053,632.49,631.24,0.29077566]
[1739293385629,0.31621053,632.49,631.25,0.60759763]
[1739293385835,0.31621053,632.49,631.26,0.29076595]
[1739293386034,0.31621053,632.49,631.25,0.31683168]
[1739293387029,3.67649538,632.48,631.26,0.29088035]
[1739293387333,3.99271591,632.47,631.26,0.29088035]
[1739293387530,3.99272091,632.46,631.26,0.29088035]
[1739293387730,0.31622553,632.46,631.25,0.31683168]
[1739293392935,0.31622553,632.46,630.77,1.16294262]
[1739293396236,0.31622553,632.46,630.29,1.65358633]
[1739293396434,0.31622553,632.46,630.31,0.31730418]
[1739293396635,0.31622553,632.46,630.32,0.29108517]
[1739293396839,0.31622553,632.46,630.32,0.96112021]
[1739293397038,0.31622553,632.46,630.33,0.29108517]
[1739293397240,0.31622553,632.46,630.32,0.29108517]
[1739293397436,0.31622553,632.46,630.31,1.27842874]
[1739293397637,0.31622553,632.46,630.33,0.31729411]
[1739293397837,0.31622553,632.46,630.34,0.29108517]
[1739293398035,0.31622553,632.46,630.36,0.31727901]
[1739293398237,0.31622553,632.46,630.37,0.29108077]
[1739293398441,0.31622553,632.46,630.39,0.31726391]
[1739293398743,0.31622553,632.46,630.4,0.29108077]
[1739293399041,0.31622553,632.46,630.41,0.31725385]
[1739293399241,0.31622553,632.46,630.42,0.29108077]
[1739293399433,0.31622553,632.46,630.43,0.31724378]
[1739293399640,0.31622553,632.46,630.44,0.29108077]
[1739293399836,0.31622553,632.46,630.45,0.31723372]
[1739293400039,0.31622553,632.46,630.46,0.29108077]
[1739293400240,0.31622553,632.46,630.47,0.31722365]
[1739293400439,0.31622553,632.46,630.48,0.29108077]
[1739293400639,0.31622553,632.46,630.49,0.31721359]
[1739293400840,0.31622553,632.46,630.5,0.29108077]
[1739293401141,0.31622553,632.46,630.51,0.31720353]
[1739293401341,0.31622553,632.46,630.52,0.29108077]
[1739293401741,0.31622553,632.46,630.53,0.29113629]
[1739293402041,0.31622553,632.46,630.54,0.60832473]
[1739293402236,0.31622553,632.46,630.55,0.6083197]
[1739293402438,0.31622553,632.46,630.56,0.29113629]
[1739293403041,0.31622553,632.46,630.57,0.31717335]
[1739293403240,0.31622553,632.46,630.58,0.29113629]
[1739293403441,0.31622553,632.46,630.59,0.31716329]
[1739293403637,0.31622553,632.46,630.6,0.29113629]
[1739293403842,0.31622553,632.46,630.61,0.31715323]
[1739293404044,0.31622553,632.46,630.62,0.29113629]
[1739293404342,0.31622553,632.46,630.63,0.31714317]
[1739293404543,0.31622553,632.46,630.64,0.29113629]
[1739293404843,0.31622553,632.46,630.65,0.31713311]
[1739293405036,0.31622553,632.46,630.66,0.29113629]
[1739293405237,0.31622553,632.46,630.67,0.31712305]
[1739293405435,0.31622553,632.46,630.68,0.29113629]
[1739293406443,0.31622553,632.46,630.69,0.317113]
[1739293406643,0.31622553,632.46,630.7,0.29113629]
[1739293406839,0.31622553,632.46,630.71,0.31710294]
[1739293407045,0.31622553,632.46,630.72,0.29113629]
[1739293407441,0.31622553,632.46,630.74,0.31708786]
[1739293407641,0.31622553,632.46,630.75,0.29113629]
[1739293408643,0.31622553,632.46,630.76,0.31707781]
[1739293408843,0.31622553,632.46,630.77,0.29113629]
[1739293409144,0.31622553,632.46,630.78,0.31706775]
[1739293409338,0.31622553,632.46,630.79,0.29113629]
[1739293409542,0.31622553,632.46,630.8,0.3170577]
[1739293409738,0.31622553,632.46,630.81,0.29113629]
[1739293409941,0.31622553,632.46,630.82,0.31704765]
[1739293410144,0.31622553,632.46,630.83,0.29113629]
[1739293410370,0.31622553,632.46,630.84,0.3170376]
[1739293410645,0.31622553,632.46,630.85,0.29113629]
[1739293411339,0.31622553,632.46,630.84,0.3170376]
[1739293411545,0.31622553,632.46,630.85,0.29098238]
[1739293411741,0.31622553,632.46,630.85,0.60801495]
[1739293411939,0.31622553,632.46,630.86,0.29098238]
[1739293412345,0.31622553,632.46,630.85,0.31703257]
[1739293412542,0.31622553,632.46,630.86,0.29098006]
[1739293413251,0.31622553,632.46,630.85,0.31703257]
[1739293413252,0.31622553,632.46,630.87,0.2909524]
[1739293413439,0.31622553,632.46,630.86,0.2909524]
[1739293413847,0.31622553,632.46,630.87,0.31702252]
[1739293414043,0.31622553,632.46,630.88,0.2909524]
[1739293414241,0.31622553,632.46,630.89,0.31701247]
[1739293414670,0.31622553,632.46,630.9,0.29089687]
[1739293415046,0.31622553,632.46,630.91,0.31700242]
[1739293415246,0.31622553,632.46,630.92,0.29089687]
[1739293415445,0.31622553,632.46,630.93,0.31699237]
[1739293415642,0.31622553,632.46,630.94,0.29089687]
[1739293415948,0.31622553,632.46,630.95,0.31698232]
[1739293416348,0.31622553,632.46,630.96,0.29090393]
[1739293416547,0.31622553,632.46,630.97,0.31697228]
[1739293416789,0.31622553,632.46,630.98,0.29090393]
[1739293416949,0.31622553,632.46,630.99,0.31696223]
[1739293417248,0.31622553,632.46,631.0,0.29090393]
[1739293418045,3.67614865,632.45,631.0,0.29090393]
[1739293418247,3.67614865,632.44,631.0,0.29090393]
[1739293418448,3.67614865,632.43,631.0,0.29090393]
[1739293418641,0.31625053,632.41,631.0,0.29090393]
[1739293419149,0.31625053,632.41,630.99,0.31696223]
[1739293420949,0.31625053,632.41,630.42,0.66972881]
[1739293421147,0.31625053,632.41,630.43,0.29107477]
[1739293421348,0.31625053,632.41,630.44,0.29107477]
[1739293421544,0.31625053,632.41,630.46,0.31722869]
[1739293421750,0.31625053,632.41,630.47,0.29107477]
[1739293422048,0.31625053,632.41,630.48,0.60829339]
[1739293422247,0.31625053,632.41,630.49,0.96080358]
[1739293422443,0.31625053,632.41,630.5,1.27801214]
[1739293422644,0.31625053,632.41,630.51,0.29107477]
[1739293422844,0.31625053,632.41,630.52,0.3171985]
[1739293423049,0.31625053,632.41,630.53,0.29107477]
[1739293423249,1.4083708,632.4,630.53,0.29107477]
[1739293423451,0.31626553,632.38,630.54,0.60826321]
[1739293423644,3.67614865,632.37,630.55,0.60825818]
[1739293423846,0.31628054,632.35,630.56,0.60825315]
[1739293424043,3.99242919,632.35,630.57,0.60824812]
[1739293424247,0.31628054,632.35,630.58,1.2779719]
[1739293424549,0.31628054,632.35,630.59,1.27796687]
[1739293424753,0.31628054,632.35,630.6,0.60823303]
[1739293425045,3.67614865,632.34,630.61,1.2781335]
[1739293425252,0.31629554,632.32,630.62,1.27812847]
[1739293425452,0.31629554,632.32,630.63,1.27812344]
[1739293425647,0.31629554,632.32,630.64,1.27811841]
[1739293425848,3.67614865,632.31,630.65,1.27811338]
[1739293426045,0.31631055,632.29,630.66,0.60816152]
[1739293426250,3.67614865,632.28,630.67,0.29103344]
[1739293426446,0.31632556,632.26,630.67,0.29103344]
[1739293427053,0.31632556,632.26,630.68,0.31711803]
[1739293429549,0.31632556,632.26,630.69,0.29106757]
[1739293431255,0.31632556,632.26,630.68,0.31711803]
[1739293431555,0.31632556,632.26,630.69,0.29109462]
[1739293432153,0.31632556,632.26,630.68,0.31711803]
[1739293439362,0.31632556,632.26,630.69,0.29110679]
[1739293439762,0.31632556,632.26,630.68,0.31711803]
[1739293440659,0.31632556,632.26,630.69,0.29108671]
[1739293442166,3.66166953,632.25,630.69,0.29108671]
[1739293442464,3.66166953,632.24,630.68,0.31711803]
[1739293442664,3.66166953,632.23,630.69,0.2910291]
[1739293442866,3.66166953,632.25,630.7,0.2910291]
[1739293443067,0.31632556,632.26,630.69,0.2910291]
[1739293444467,0.31632556,632.26,630.71,0.31710294]
[1739293444666,0.31632556,632.26,630.72,0.2910291]
[1739293444966,0.31632556,632.26,630.74,0.31708786]
[1739293445167,0.31632556,632.26,630.75,0.2910291]
[1739293445363,0.31632556,632.26,630.76,0.31707781]
[1739293445599,0.31632556,632.26,630.77,0.2910291]
[1739293445763,0.31632556,632.26,630.78,0.31706775]
[1739293445963,0.31632556,632.26,630.79,0.2910291]
[1739293446269,0.31632556,632.26,630.8,0.3170577]
[1739293446470,0.31632556,632.26,630.81,0.2910291]
[1739293447665,0.31632556,632.26,630.8,0.3170577]
[1739293448071,0.31632556,632.26,630.81,0.29099227]
[1739293448467,0.31632556,632.26,630.8,0.3170577]
[1739293449571,0.31632556,632.26,630.81,0.29101153]
[1739293450670,3.66166953,632.25,630.81,0.29101153]
[1739293450869,0.31634057,632.23,630.81,0.29101153]
[1739293451071,0.31634057,632.23,630.82,0.31704765]
[1739293451270,0.31634057,632.23,630.83,0.29101153]
[1739293452367,0.31634057,632.23,630.84,0.3170376]
[1739293452570,0.31634057,632.23,630.85,0.29101153]
[1739293452871,0.31634057,632.23,630.86,0.31702754]
[1739293453067,0.31634057,632.23,630.87,0.29101153]
[1739293453267,0.31634057,632.23,630.88,0.31701749]
[1739293453474,0.31634057,632.23,630.89,0.29101153]
[1739293453670,0.31634057,632.23,630.9,0.31700744]
[1739293453974,0.31634057,632.23,630.91,0.29101153]
[1739293454169,0.31634057,632.23,630.92,0.3169974]
[1739293454376,0.31634057,632.23,630.93,0.29101153]
[1739293455372,0.31634057,632.23,630.95,0.31698232]
[1739293455576,0.31634057,632.23,630.96,0.29101153]
[1739293456074,0.31634057,632.23,630.97,0.31697228]
[1739293456271,0.31634057,632.23,630.98,0.29101153]
[1739293456468,0.31634057,632.23,630.99,0.31696223]
[1739293456669,0.31634057,632.23,631.0,0.29101153]
[1739293456872,0.31634057,632.23,631.01,0.31695218]
[1739293457070,0.31634057,632.23,631.02,0.29084912]
[1739293457275,0.31634057,632.23,631.03,0.31694214]
[1739293457576,0.31634057,632.23,631.04,0.29084912]
[1739293457777,0.31634057,632.23,631.05,0.31693209]
[1739293457969,0.31634057,632.23,631.06,0.29084912]
[1739293458173,0.31634057,632.23,631.07,0.31692205]
[1739293458372,0.31634057,632.23,631.08,0.29084912]
[1739293458573,0.31634057,632.23,631.09,0.316912]
[1739293458771,0.31634057,632.23,631.1,0.29084912]
[1739293458976,0.31634057,632.23,631.11,0.31690196]
[1739293459171,0.31634057,632.23,631.12,0.29084912]
[1739293461179,0.31634057,632.23,631.11,0.31690196]
[1739293465983,0.31634057,632.23,630.46,1.65340302]
[1739293466181,0.31634057,632.23,630.48,0.31721862]
[1739293466397,0.31634057,632.23,630.49,0.2909928]
[1739293466584,0.31634057,632.23,630.51,0.31720353]
[1739293466777,0.31634057,632.23,630.52,0.2909928]
[1739293467087,0.31634057,632.23,630.54,0.31718844]
[1739293467282,0.31634057,632.23,630.55,0.2909928]
[1739293467479,0.31634057,632.23,630.57,0.31717335]
[1739293467985,0.31634057,632.23,630.58,0.2909928]
[1739293468522,0.31634057,632.23,630.6,0.31715826]
[1739293468684,0.31634057,632.23,630.61,0.2909928]
[1739293468880,0.31634057,632.23,630.63,0.31714317]
[1739293469084,0.31634057,632.23,630.64,0.2909928]
[1739293469285,0.31634057,632.23,630.66,0.31712808]
[1739293469478,0.31634057,632.23,630.67,0.2909928]
[1739293469883,0.31634057,632.23,630.69,0.317113]
[1739293470082,0.31634057,632.23,630.7,0.2909928]
[1739293470282,0.31634057,632.23,630.72,0.31709791]
[1739293470603,0.31634057,632.23,630.73,0.2909928]
[1739293470781,0.31634057,632.23,630.74,0.31708786]
[1739293470982,0.31634057,632.23,630.75,0.2909928]
[1739293471283,0.31634057,632.23,630.76,0.31707781]
[1739293471484,0.31634057,632.23,630.77,0.2909928]
[1739293471683,0.31634057,632.23,630.78,0.31706775]
[1739293473884,0.31634057,632.23,630.79,0.2909599]
[1739293474080,0.31634057,632.23,630.8,0.3170577]
[1739293474285,0.31634057,632.23,630.81,0.2909599]
[1739293474888,0.31634057,632.23,630.82,0.31704765]
[1739293475086,0.31634057,632.23,630.83,0.29092557]
[1739293475387,0.31634057,632.23,630.84,0.3170376]
[1739293475588,0.31634057,632.23,630.85,0.29092557]
[1739293475788,0.31634057,632.23,630.86,0.31702754]
[1739293475983,0.31634057,632.23,630.87,0.29092557]
[1739293476188,0.31634057,632.23,630.88,0.31701749]
[1739293476489,0.31634057,632.23,630.89,0.29092557]
[1739293476686,0.31634057,632.23,630.9,0.60789179]
[1739293476888,0.31634057,632.23,630.91,0.29088435]
[1739293477484,0.31634057,632.23,630.92,0.3169974]
[1739293477682,0.31634057,632.23,630.93,0.29088435]
[1739293478290,0.31634057,632.23,630.94,0.31698735]
[1739293478589,0.31634057,632.23,630.95,0.29089663]
[1739293479183,0.31634057,632.23,630.96,0.3169773]
[1739293479386,0.31634057,632.23,630.97,0.29089663]
[1739293479586,0.31634057,632.23,630.98,0.31696725]